bitfinex/quotes_SOLUSD_20250421
["timestamp","ask_amount","ask_price","bid_price","bid_amount"]
[1745212501428,1.5509,140.48,140.43,14.18]
[1745212504427,0.03,140.49,140.43,14.18]
[1745212509307,0.03,140.49,140.46,26.0]
[1745212509628,0.03,140.49,140.47,26.0]
[1745212509808,0.03,140.49,140.48,14.18]
[1745212520731,0.03,140.49,140.48,14.32216157]
[1745212521831,0.03,140.49,140.48,20.11289659]
[1745212522140,0.03,140.49,140.48,14.32216157]
[1745212523748,0.03,140.49,140.48,258.06216157]
[1745212528041,0.03,140.49,140.48,257.92]
[1745212528246,0.03,140.49,140.48,258.06216157]
[1745212533753,0.03,140.53,140.48,276.71181043]
[1745212533952,0.03,140.53,140.52,0.14216157]
[1745212535349,0.03,140.53,140.52,18.79181043]
[1745212538668,0.03,140.53,140.52,22.33621252]
[1745212540443,0.03,140.53,140.52,23.75845984]
[1745212543678,0.03,140.53,140.52,104.45845984]
[1745212544048,0.03,140.58,140.54,18.79181043]
[1745212544265,0.03,140.58,140.56,0.14216157]
[1745212548483,0.03,140.58,140.56,18.79181043]
[1745212554777,0.03,140.58,140.56,262.35181043]
[1745212562485,0.03,140.58,140.56,243.56]
[1745212562782,0.03,140.58,140.56,269.70216157]
[1745212562995,0.03,140.58,140.56,269.56]
[1745212563191,0.03,140.58,140.56,257.72]
[1745212570598,7.9912,140.57,140.56,14.16]
[1745212582209,1.6935,140.57,140.56,14.16]
[1745212583396,0.03,140.57,140.56,14.16]
[1745212593011,0.03,140.57,140.56,14.30216157]
[1745212595613,0.03,140.57,140.56,40.30216157]
[1745212597222,0.03,140.57,140.56,14.30216157]
[1745212597513,0.03,140.57,140.56,40.30216157]
[1745212598495,0.03,140.57,140.56,14.30216157]
[1745212600619,0.03,140.57,140.56,32.95181043]
[1745212604014,0.03,140.62,140.57,18.79181043]
[1745212605218,0.03,140.62,140.57,0.14216157]
[1745212609629,0.03,140.62,140.57,18.79181043]
[1745212609830,0.03,140.62,140.57,0.14216157]
[1745212610015,0.03,140.62,140.57,18.79181043]
[1745212612725,0.03,140.62,140.58,8.0101]
[1745212612932,0.03,140.62,140.59,18.79181043]
[1745212616430,0.03,140.62,140.59,18.64964886]
[1745212616613,0.03,140.62,140.6,0.14216157]
[1745212616814,0.03,140.62,140.61,14.28216157]
[1745212619032,0.03,140.62,140.61,257.78216157]
[1745212625653,0.03,140.62,140.61,257.64]
[1745212625850,0.03,140.62,140.61,283.64]
[1745212630828,0.03,140.62,140.61,257.64]
[1745212640530,0.03,140.62,140.58,243.5]
[1745212640531,20.23764886,140.62,140.58,243.5]
[1745212642258,20.23764886,140.62,140.54,26.0]
[1745212642840,1.588,140.62,140.55,0.14216157]
[1745212643250,1.588,140.62,140.54,26.0]
[1745212643557,1.588,140.62,140.55,0.14216157]
[1745212645260,1.588,140.62,140.56,257.68]
[1745212652654,0.03,140.62,140.56,257.68]
[1745212662161,0.03,140.62,140.57,14.14]
[1745212666977,0.03,140.62,140.58,243.56]
[1745212671773,0.03,140.62,140.59,14.14]
[1745212673679,0.03,140.62,140.6,0.14216157]
[1745212678584,0.03,140.62,140.6,18.79181043]
[1745212684379,0.03,140.62,140.6,99.49181043]
[1745212685993,0.03,140.64,140.63,44.79181043]
[1745212686695,0.03,140.64,140.63,50.34179836]
[1745212687288,0.03,140.64,140.63,53.80224531]
[1745212687687,6.0893,140.74,140.64,0.14216157]
[1745212687891,6.0893,140.74,140.67,44.79181043]
[1745212688365,6.0893,140.74,140.67,26.14216157]
[1745212691068,6.1193,140.74,140.67,26.14216157]
[1745212691991,6.1193,140.74,140.67,269.56216157]
[1745212695693,6.1193,140.74,140.67,269.42]
[1745212695906,1.5292,140.71,140.67,269.42]
[1745212697082,1.5292,140.71,140.67,243.42]
[1745212699583,6.0893,140.7,140.67,243.42]
[1745212699890,6.0893,140.7,140.67,257.54]
[1745212704004,0.03,140.72,140.67,257.68216157]
[1745212704195,0.03,140.72,140.67,266.24671123]
[1745212708594,0.03,140.72,140.67,283.68216157]
[1745212709488,0.03,140.72,140.67,283.54]
[1745212720215,1.6569,140.7,140.67,257.54]
[1745212727903,0.03,140.72,140.67,257.54]
[1745212730140,0.03,140.72,140.67,283.54]
[1745212730317,0.03,140.72,140.68,0.14216157]
[1745212736535,0.03,140.72,140.67,283.54]
[1745212742236,0.03,140.72,140.68,0.14216157]
[1745212752441,0.03,140.72,140.71,0.14216157]
[1745212752742,0.03,140.72,140.71,26.14216157]
[1745212760143,0.03,140.72,140.71,40.26216157]
[1745212764952,0.03,140.72,140.71,283.58216157]
[1745212785173,0.03,140.72,140.71,243.32]
[1745212785492,8.1366,140.72,140.71,257.42]
[1745212789404,26.78624886,140.72,140.71,14.1]
[1745212804710,1.5531,140.72,140.71,14.1]
[1745212804891,0.03,140.72,140.71,14.1]
[1745212809121,0.03,140.72,140.71,257.5]
[1745212823732,0.03,140.72,140.71,14.1]
[1745212860991,44.67964886,140.72,140.7,243.38]
[1745212861288,18.64964886,140.71,140.66,243.4]
[1745212861462,18.64964886,140.71,140.67,14.1]
[1745212862151,0.14216157,140.7,140.67,14.1]
[1745212862359,52.43881043,140.68,140.67,14.1]
[1745212862587,58.19778034,140.68,140.67,14.1]
[1745212862789,40.07181043,140.67,140.66,257.5]
[1745212863081,18.79181043,140.63,140.62,0.063]
[1745212865285,18.79181043,140.63,140.62,14.163]
[1745212867178,20.40521043,140.63,140.62,14.163]
[1745212869162,101.20521043,140.63,140.62,14.163]
[1745212869463,99.44964886,140.63,140.62,14.163]
[1745212869864,18.64964886,140.66,140.62,14.163]
[1745212870385,44.64964886,140.66,140.62,14.163]
[1745212871591,18.64964886,140.66,140.62,14.163]
[1745212871960,18.64964886,140.7,140.62,14.163]
[1745212879687,0.14216157,140.69,140.62,14.163]
[1745212883098,18.64964886,140.7,140.62,14.163]
[1745212889604,18.64964886,140.7,140.63,243.5]
[1745212891009,0.03,140.72,140.64,7.9416]
[1745212891182,0.03,140.72,140.64,33.9416]
[1745212891685,0.03,140.72,140.67,26.0]
[1745212892031,0.03,140.72,140.68,14.1]
[1745212898210,18.67964886,140.72,140.68,14.1]
[1745212904808,0.14216157,140.71,140.68,14.1]
[1745212910322,99.47964886,140.72,140.68,14.1]
[1745212911410,26.0,140.69,140.68,14.1]
[1745212911613,18.64964886,140.7,140.68,14.1]
[1745212916296,18.64964886,140.7,140.68,257.56]
[1745212918515,80.83,140.72,140.68,257.56]
[1745212918902,0.03,140.72,140.68,257.56]
[1745212927223,18.64964886,140.7,140.68,257.56]
[1745212930128,20.21504886,140.69,140.68,257.56]
[1745212930631,18.64964886,140.69,140.68,257.56]
[1745212931933,26.0,140.71,140.68,257.56]
[1745212932630,18.67964886,140.72,140.68,257.56]
[1745212932828,0.03,140.72,140.68,257.56]
[1745212933235,18.67964886,140.72,140.68,257.56]
[1745212941334,18.67964886,140.72,140.68,14.1]
[1745212944949,44.67964886,140.72,140.68,14.1]
[1745212948848,0.14216157,140.71,140.68,14.1]
[1745212952741,46.30424886,140.72,140.68,14.1]
[1745212952941,44.67964886,140.72,140.68,14.1]
[1745212955426,26.03,140.72,140.68,14.1]
[1745212955635,0.03,140.72,140.68,14.1]
[1745212969754,26.03,140.72,140.68,14.1]
[1745212971262,0.03,140.72,140.68,14.1]
[1745212972030,0.03,140.72,140.69,243.42]
[1745212976861,0.03,140.72,140.7,14.08]
[1745212981567,0.03,140.72,140.71,243.4]
[1745212986367,0.03,140.72,140.71,257.48]
[1745212991261,0.03,140.72,140.71,14.08]
[1745213013049,0.03,140.72,140.71,40.08]
[1745213016563,0.03,140.72,140.71,14.08]
[1745213027381,0.03,140.72,140.71,257.44]
[1745213063896,0.03,140.72,140.71,257.42]
[1745213164085,0.03,140.72,140.71,259.0238]
[1745213173687,0.03,140.72,140.71,277.81561043]
[1745213186394,84.85669493,140.8,140.73,26.0]
[1745213186590,4.05669493,140.8,140.73,26.0]
[1745213189394,5.69499493,140.8,140.73,26.0]
[1745213190883,5.69499493,140.8,140.74,14.04]
[1745213195706,5.69499493,140.8,140.75,243.3]
[1745213205199,5.69499493,140.8,140.76,14.04]
[1745213210000,5.69499493,140.8,140.77,14.04]
[1745213210197,18.64964886,140.79,140.77,14.04]
[1745213210405,18.79181043,140.79,140.78,14.04]
[1745213219316,86.49499493,140.8,140.78,14.04]
[1745213219494,80.8,140.8,140.78,14.04]
[1745213229208,18.64964886,140.79,140.78,14.04]
[1745213229416,18.79181043,140.79,140.78,14.04]
[1745213229813,20.43891043,140.79,140.78,14.04]
[1745213234421,46.43891043,140.79,140.78,14.04]
[1745213236000,20.43891043,140.79,140.78,14.04]
[1745213253245,27.54168761,140.79,140.78,14.04]
[1745213255940,20.43891043,140.79,140.78,14.04]
[1745213256745,18.64964886,140.8,140.78,14.04]
[1745213257120,26.0,140.79,140.78,14.04]
[1745213260938,1.03,140.83,140.78,14.04]
[1745213261122,18.64964886,140.8,140.78,14.04]
[1745213261323,0.14216157,140.79,140.78,14.04]
[1745213265237,18.64964886,140.8,140.78,14.04]
[1745213265537,0.14216157,140.79,140.78,14.04]
[1745213268744,18.64964886,140.8,140.78,14.04]
[1745213269144,18.64964886,140.8,140.79,14.04]
[1745213271145,99.44964886,140.8,140.79,14.04]
[1745213274347,106.55192158,140.8,140.79,14.04]
[1745213274725,99.44964886,140.8,140.79,14.04]
[1745213275221,106.55192158,140.8,140.79,14.04]
[1745213276227,99.44964886,140.8,140.79,14.04]
[1745213277451,106.55192158,140.8,140.79,14.04]
[1745213277750,99.44964886,140.8,140.79,14.04]
[1745213285153,80.83,140.83,140.79,14.04]
[1745213285459,106.83,140.83,140.8,1.5229]
[1745213285954,80.83,140.83,140.8,1.5229]
[1745213286153,18.64964886,140.82,140.8,1.5229]
[1745213292545,18.64964886,140.82,140.79,14.04]
[1745213293558,80.83,140.83,140.8,1.5229]
[1745213293740,0.03,140.83,140.81,6.4892]
[1745213298245,0.03,140.83,140.8,1.5229]
[1745213302553,0.03,140.83,140.81,243.26]
[1745213312377,0.03,140.83,140.82,14.02]
[1745213329810,0.03,140.83,140.81,243.26]
[1745213329981,0.03,140.83,140.82,14.02]
[1745213350585,0.03,140.83,140.82,58.66964886]
[1745213356796,0.03,140.83,140.82,65.01474886]
[1745213356979,1.1901524,140.85,140.83,18.64964886]
[1745213357184,0.03,140.87,140.85,18.64964886]
[1745213357411,0.03,140.87,140.85,27.77573633]
[1745213358101,0.03,140.88,140.87,44.64964886]
[1745213358305,0.03,140.98,140.92,18.64964886]
[1745213358488,0.03,140.98,140.93,257.12]
[1745213359487,0.03,140.98,140.96,26.0]
[1745213360905,0.03,140.98,140.93,257.12]
[1745213388536,1.6891,140.98,140.93,257.12]
[1745213388831,1.6891,140.98,140.94,14.0]
[1745213389711,8.78231826,140.98,140.94,14.0]
[1745213389917,89.58231826,140.98,140.94,14.0]
[1745213391239,82.4891,140.98,140.94,14.0]
[1745213392722,1.6891,140.98,140.94,14.0]
[1745213393042,0.03,140.98,140.94,14.0]
[1745213398537,0.03,140.98,140.95,242.98]
[1745213404741,0.03,140.98,140.96,13.98]
[1745213409550,0.03,140.98,140.97,13.98]
[1745213414357,0.03,140.98,140.97,256.92]
[1745213418961,0.03,141.02,140.98,18.64964886]
[1745213420356,0.03,141.02,140.98,44.64964886]
[1745213423638,0.03,141.02,140.98,26.0]
[1745213423946,0.03,141.02,140.97,256.92]
[1745213429878,18.67964886,141.02,140.97,256.92]
[1745213432446,26.0,141.01,140.97,256.92]
[1745213433166,18.64964886,141.0,140.97,256.92]
[1745213434879,26.0,141.01,140.97,256.92]
[1745213436168,26.0,141.01,140.98,13.98]
[1745213437158,18.64964886,141.0,140.99,13.98]
[1745213437969,80.8,141.0,140.99,13.98]
[1745213438475,99.44964886,141.0,140.99,13.98]
[1745213442585,27.32214744,141.0,140.99,13.98]
[1745213447672,18.64964886,140.96,140.92,242.96]
[1745213447880,18.64964886,140.96,140.93,13.98]
[1745213449164,18.64964886,140.98,140.93,13.98]
[1745213449372,26.0,140.95,140.93,13.98]
[1745213449977,18.64964886,140.98,140.93,13.98]
[1745213450176,26.0,140.95,140.93,13.98]
[1745213457371,26.0,140.94,140.93,13.98]
[1745213457868,44.64964886,140.94,140.93,13.98]
[1745213459384,26.0,140.94,140.93,13.98]
[1745213463574,125.44964886,140.96,140.93,13.98]
[1745213469378,18.64964886,140.95,140.93,13.98]
[1745213472895,125.44964886,140.94,140.93,13.98]
[1745213473084,24.69284886,140.94,140.93,13.98]
[1745213473398,51.74587366,140.92,140.91,14.043]
[1745213475705,54.31287366,140.92,140.91,14.043]
[1745213476602,54.31287366,140.92,140.91,0.063]
[1745213476901,118.08287366,140.92,140.91,0.063]
[1745213477086,44.64964886,140.88,140.87,13.98]
[1745213477791,45.64964886,140.88,140.87,13.98]
[1745213478183,54.31488849,140.88,140.87,13.98]
[1745213478395,60.35808849,140.88,140.87,13.98]
[1745213479604,26.74889633,140.86,140.85,0.063]
[1745213482390,90.51889633,140.86,140.85,0.063]
[1745213482609,91.61074886,140.84,140.83,0.063]
[1745213483507,91.61074886,140.84,140.79,14.063]
[1745213483508,44.64964886,140.8,140.79,14.063]
[1745213483895,45.64964886,140.8,140.79,14.063]
[1745213484102,83.41964886,140.8,140.79,14.063]
[1745213484304,83.41964886,140.8,140.79,0.063]
[1745213484499,95.77884427,140.8,140.79,0.063]
[1745213485617,74.51884427,140.8,140.79,0.063]
[1745213487617,44.64964886,140.77,140.75,14.0]
[1745213487814,45.64964886,140.77,140.75,14.0]
[1745213488193,45.64964886,140.77,140.72,243.223]
[1745213489401,52.75343517,140.77,140.72,243.223]
[1745213491010,19.64964886,140.75,140.72,0.063]
[1745213491919,100.38664886,140.74,140.72,0.063]
[1745213492505,19.64964886,140.73,140.72,0.063]
[1745213492712,83.41964886,140.73,140.72,0.063]
[1745213492910,89.34636709,140.73,140.72,0.063]
[1745213493121,96.45217253,140.73,140.72,1e-08]
[1745213493711,98.08427253,140.73,140.72,1e-08]
[1745213494318,34.31427253,140.73,140.72,1e-08]
[1745213494823,28.3875543,140.73,140.72,1e-08]
[1745213495632,27.3875543,140.73,140.72,1e-08]
[1745213495825,49.6475543,140.73,140.72,1e-08]
[1745213496319,92.1575543,140.73,140.72,1e-08]
[1745213497214,89.38664885,140.69,140.68,0.063]
[1745213497525,18.64964886,140.69,140.68,0.063]
[1745213498932,25.75747457,140.69,140.68,0.063]
[1745213499226,18.64964886,140.69,140.68,0.063]
[1745213501012,1.0,140.73,140.68,0.063]
[1745213501525,18.64964886,140.7,140.68,0.063]
[1745213503729,26.0,140.69,140.68,0.063]
[1745213504230,80.8,140.72,140.68,0.063]
[1745213505116,106.8,140.72,140.68,0.063]
[1745213505524,80.8,140.72,140.68,0.063]
[1745213505730,106.8,140.72,140.68,0.063]
[1745213516724,77.49082547,140.77,140.69,1.5942]
[1745213516926,26.0,140.74,140.7,6.3476]
[1745213520545,26.0,140.72,140.69,1.5942]
[1745213521555,18.64964886,140.72,140.69,1.5942]
[1745213521926,26.0,140.73,140.69,1.5942]
[1745213522630,26.0,140.72,140.69,1.5942]
[1745213523041,26.0,140.71,140.69,1.5942]
[1745213525262,77.49082547,140.74,140.69,1.5942]
[1745213525624,26.0,140.75,140.69,1.5942]
[1745213525829,77.49082547,140.77,140.69,1.5942]
[1745213526031,26.0,140.74,140.69,1.5942]
[1745213527941,26.0,140.74,140.7,243.46]
[1745213528143,26.0,140.74,140.71,6.6202]
[1745213528347,26.0,140.74,140.72,14.02]
[1745213530062,77.49082547,140.77,140.72,14.02]
[1745213530229,0.03,140.78,140.73,1.5299]
[1745213530656,26.03,140.78,140.73,1.5299]
[1745213538749,0.03,140.78,140.73,1.5299]
[1745213544949,0.03,140.78,140.74,243.32]
[1745213549665,0.03,140.78,140.75,14.02]
[1745213559172,0.03,140.78,140.76,243.28]
[1745213565786,0.03,140.78,140.77,26.84854886]
[1745213565965,1.6049,140.88,140.8,26.0]
[1745213566162,1.6049,140.88,140.81,14.06]
[1745213570480,0.03,140.88,140.82,1.6057]
[1745213572363,26.0,140.86,140.82,1.6057]
[1745213572858,0.03,140.88,140.81,14.06]
[1745213581993,0.03,140.88,140.82,243.16]
[1745213584283,1.5322,140.87,140.83,14.04]
[1745213584493,6.1614,140.86,140.83,14.04]
[1745213584675,32.1614,140.86,140.83,14.04]
[1745213585188,26.03,140.84,140.83,14.04]
[1745213587198,44.67964886,140.84,140.83,14.04]
[1745213588198,26.03,140.84,140.83,14.04]
[1745213594492,0.03,140.84,140.83,14.04]
[1745213602219,44.67964886,140.84,140.83,14.04]
[1745213603909,26.03,140.84,140.83,14.04]
[1745213606511,0.03,140.84,140.83,14.04]
[1745213675366,0.03,140.84,140.83,13.98]
[1745213678475,96.17047433,140.84,140.83,13.98]
[1745213680274,77.52082547,140.84,140.83,13.98]
[1745213680579,0.03,140.84,140.83,13.98]
[1745213682476,0.03,140.87,140.84,8.30984886]
[1745213682676,0.03,140.87,140.83,13.98]
[1745213682976,0.03,140.87,140.83,23.51775413]
[1745213684968,0.03,140.87,140.83,24.51775413]
[1745213685480,0.03,140.87,140.83,23.51775413]
[1745213685678,0.03,140.87,140.84,1.5672]
[1745213687557,0.03,140.87,140.86,26.0]
[1745213693288,0.03,140.87,140.84,1.5672]
[1745213698789,0.03,140.87,140.84,27.5672]
[1745213700573,0.03,140.87,140.84,26.0]
[1745213710678,0.03,140.87,140.85,243.1]
[1745213715489,0.03,140.87,140.86,13.98]
[1745213729818,0.03,140.87,140.86,257.08]
[1745213739328,1.6725,140.87,140.86,257.08]
[1745213743224,20.32214886,140.87,140.86,257.08]
[1745213749121,1.6725,140.87,140.86,257.08]
[1745213749430,0.03,140.87,140.86,257.08]
[1745213750146,0.03,140.87,140.86,13.98]
[1745213750817,18.67964886,140.87,140.86,13.98]
[1745213751014,20.23354886,140.87,140.86,13.98]
[1745213756639,52.25504886,140.87,140.86,13.98]
[1745213756940,52.25504886,140.87,140.83,13.98]
[1745213757117,44.64964886,140.84,140.83,13.98]
[1745213758141,46.20354886,140.84,140.83,13.98]
[1745213766237,6.0515,140.87,140.83,13.98]
[1745213766543,26.0,140.84,140.83,13.98]
[1745213769635,44.64964886,140.86,140.83,13.98]
[1745213778054,125.44964886,140.86,140.83,13.98]
[1745213799868,125.44964886,140.86,140.84,13.98]
[1745213801564,99.44964886,140.85,140.84,13.98]
[1745213807566,18.64964886,140.85,140.84,13.98]
[1745213810453,26.0,140.86,140.84,13.98]
[1745213810656,18.67964886,140.87,140.84,13.98]
[1745213818281,26.0,140.85,140.84,13.98]
[1745213823275,0.03,140.87,140.84,13.98]
[1745213823591,44.67964886,140.87,140.84,13.98]
[1745213829404,44.67964886,140.87,140.85,13.96]
[1745213831106,99.44964886,140.86,140.85,13.96]
[1745213836716,18.64964886,140.86,140.85,13.96]
[1745213843113,26.0,140.83,140.81,13.96]
[1745213843902,26.0,140.85,140.81,13.96]
[1745213848238,106.8,140.85,140.81,13.96]
[1745213853842,80.8,140.85,140.81,13.96]
[1745213854145,0.03,140.87,140.81,15.6132]
[1745213855346,0.03,140.87,140.81,47.7654]
[1745213867447,0.03,140.87,140.82,243.16]
[1745213868056,18.67964886,140.87,140.82,243.16]
[1745213882470,0.03,140.87,140.82,243.16]
[1745213893573,0.03,140.87,140.82,249.6819]
[1745213897975,0.03,140.87,140.82,243.16]
[1745213898275,18.67964886,140.87,140.82,243.16]
[1745213899076,0.03,140.87,140.82,243.16]
[1745213900765,0.03,140.87,140.83,13.96]
[1745213910173,0.03,140.87,140.82,243.16]
[1745213910489,0.03,140.87,140.84,13.96]
[1745213912298,18.64964886,140.85,140.83,13.96]
[1745213912898,80.8,140.86,140.83,13.96]
[1745213913192,18.64964886,140.85,140.83,13.96]
[1745213923699,80.8,140.86,140.83,13.96]
[1745213927795,0.03,140.87,140.83,13.96]
[1745213937313,18.67964886,140.87,140.83,13.96]
[1745213939413,80.8,140.86,140.83,13.96]
[1745213952994,99.44964886,140.85,140.83,13.96]
[1745213953216,101.06344886,140.85,140.83,13.96]
[1745213953914,26.0,140.84,140.83,13.96]
[1745213955924,20.26344886,140.85,140.83,13.96]
[1745213956721,44.64964886,140.84,140.83,13.96]
[1745213960427,41.06048386,140.84,140.83,13.96]
[1745213962424,18.64964886,140.84,140.83,13.96]
[1745213964827,18.64964886,140.85,140.83,13.96]
[1745213965297,26.0,140.86,140.83,13.96]
[1745213968807,106.8,140.86,140.83,13.96]
[1745213970027,80.8,140.86,140.83,13.96]
[1745213998258,26.0,140.84,140.83,13.96]
[1745214004249,46.16484886,140.85,140.83,13.96]
[1745214009954,44.64964886,140.85,140.83,13.96]
[1745214010954,0.03,140.87,140.83,13.96]
[1745214015577,80.83,140.87,140.83,13.96]
[1745214035369,80.83,140.87,140.8,243.2]
[1745214035572,80.83,140.87,140.84,13.94]
[1745214039190,0.03,140.87,140.84,13.94]
[1745214039385,0.03,140.87,140.84,21.7605]
[1745214060621,0.03,140.87,140.86,26.0]
[1745214061126,0.03,140.87,140.86,269.08]
[1745214065826,0.03,140.87,140.86,283.0]
[1745214069324,0.03,140.87,140.86,257.0]
[1745214095458,1.6207,140.87,140.86,257.0]
[1745214096760,1.6207,140.87,140.78,18.71264886]
[1745214096957,1.6207,140.87,140.79,257.02]
[1745214104558,1.6207,140.87,140.8,26.0]
[1745214106154,0.03,140.87,140.82,26.0]
[1745214108659,0.03,140.87,140.83,13.92]
[1745214113548,0.03,140.87,140.84,243.12]
[1745214123071,0.03,140.87,140.85,13.92]
[1745214156887,0.03,140.87,140.86,243.08]
[1745214185503,0.03,140.87,140.86,257.0]
[1745214190222,0.03,140.87,140.86,13.92]
[1745214195532,107.24944886,140.86,140.85,243.12]
[1745214195843,26.0,140.83,140.78,0.063]
[1745214196040,26.0,140.83,140.79,13.92]
[1745214202244,80.8,140.84,140.79,13.92]
[1745214204644,18.64964886,140.83,140.79,13.92]
[1745214210352,80.8,140.84,140.79,13.92]
[1745214217060,80.8,140.84,140.8,243.22]
[1745214218038,27.6003,140.86,140.8,243.22]
[1745214229247,18.64964886,140.85,140.8,243.22]
[1745214231371,27.6003,140.86,140.8,243.22]
[1745214231578,27.6003,140.86,140.81,13.92]
[1745214231869,0.03,140.87,140.81,13.92]
[1745214244178,0.03,140.87,140.84,26.0]
[1745214248700,0.03,140.87,140.81,13.92]
[1745214252504,0.03,140.87,140.82,243.14]
[1745214257903,0.03,140.87,140.83,6.2382]
[1745214261601,0.03,140.87,140.83,32.2382]
[1745214262303,0.03,140.87,140.83,26.0]
[1745214262988,0.03,140.87,140.84,13.9]
[1745214267800,0.03,140.87,140.85,243.1]
[1745214274123,0.03,140.87,140.85,243.1]
[1745214277210,0.03,140.87,140.86,13.9]
[1745214286927,0.03,140.87,140.86,257.0]
[1745214318961,0.03,140.88,140.86,275.64964886]
[1745214319258,0.03,140.91,140.9,26.0]
[1745214325353,0.03,140.91,140.9,29.48969255]
[1745214328858,0.03,140.91,140.9,26.0]
[1745214337457,0.03,140.91,140.9,39.88]
[1745214341062,0.03,140.91,140.9,13.88]
[1745214342368,0.03,140.91,140.9,256.88]
[1745214390198,0.03,140.91,140.9,275.52964886]
[1745214393125,0.03,140.91,140.9,301.52964886]
[1745214395211,0.03,140.91,140.9,275.52964886]
[1745214398012,0.5387348,140.97,140.92,26.0]
[1745214398197,0.5387348,140.97,140.93,26.0]
[1745214399911,0.5387348,140.97,140.94,13.88]
[1745214401821,7.8243,140.96,140.94,13.88]
[1745214404217,7.8243,140.96,140.94,12.2134]
[1745214406315,7.8243,140.96,140.94,12.92291392]
[1745214415648,7.8243,140.96,140.94,12.2134]
[1745214429350,0.5387348,140.97,140.94,12.2134]
[1745214465447,1e-08,140.97,140.94,12.2134]
[1745214467857,1e-08,140.97,140.95,242.96]
[1745214469759,1e-08,140.97,140.96,26.25714886]
[1745214469952,0.03,141.0,140.98,44.64964886]
[1745214470155,0.03,141.0,140.99,33.14964886]
[1745214472769,8.0685,141.1,140.99,33.14964886]
[1745214472770,106.8,141.09,140.99,33.14964886]
[1745214480284,18.67964886,141.12,141.04,18.64964886]
[1745214480285,0.03,141.12,141.04,18.64964886]
[1745214480471,0.03,141.12,141.05,15.2]
[1745214480664,0.03,141.12,141.06,242.86]
[1745214481066,0.03,141.12,141.06,268.86]
[1745214482884,0.03,141.12,141.06,242.86]
[1745214485478,26.03,141.11,141.06,242.86]
[1745214487968,8.1071,141.1,141.06,242.86]
[1745214488506,88.9071,141.1,141.06,242.86]
[1745214488683,18.64964886,141.09,141.06,242.86]
[1745214488886,26.0,141.07,141.06,242.86]
[1745214489187,18.64964886,141.07,141.06,242.86]
[1745214491094,133.55674886,141.06,141.02,15.86]
[1745214491288,26.0,141.03,141.02,15.86]
[1745214503202,44.64964886,141.03,141.02,15.86]
[1745214504380,26.0,141.03,141.02,15.86]
[1745214506607,44.64964886,141.03,141.02,15.86]
[1745214519109,26.0,141.03,141.02,15.86]
[1745214519312,80.8,141.04,141.02,15.86]
[1745214530144,0.03,141.11,141.04,6.0731]
[1745214530431,0.03,141.11,141.05,1.5177]